lending/lending_fUSD_20250122
["ID","MTS","AMOUNT","RATE_DAILY","PERIOD"]
[349932217,1737516633629,-1041.76,0.00021834,2]
[349932218,1737516633639,-2197.29,0.00021834,2]
[349932219,1737516633649,-2544.49,0.00021834,2]
[349932220,1737516633659,-1245.357483,0.00021834,2]
[349932221,1737516633668,-500.0,0.00021834,2]
[349932222,1737516633678,-500.0,0.00021834,2]
[349932223,1737516633687,-1009.23,0.00021834,2]
[349932224,1737516633698,-929.11,0.00021834,2]
[349932225,1737516633707,-2660.44,0.00021834,2]
[349932226,1737516633717,-715.14,0.00021834,2]
[349932227,1737516633727,-500.0,0.00021834,2]
[349932228,1737516633736,-928.34,0.00021834,2]
[349932229,1737516633746,-500.0,0.00021834,2]
[349932230,1737516633756,-500.0,0.00021834,2]
[349932231,1737516633766,-4237.29,0.00021834,2]
[349932232,1737516633776,-1029.56,0.00021834,2]
[349932233,1737516633787,-666.21,0.00021834,2]
[349932234,1737516633800,-557.79,0.00021834,2]
[349932235,1737516633810,-1311.46,0.00021834,2]
[349932236,1737516633820,-1668.63,0.00021834,2]
[349932237,1737516633831,-500.0,0.00021834,2]
[349932238,1737516633840,-1001.86,0.00021834,2]
[349932239,1737516633850,-1238.14,0.00021834,2]
[349932240,1737516633860,-965.67,0.00021834,2]
[349932241,1737516633871,-631.75,0.00021834,2]
[349932242,1737516633880,-1895.56,0.00021834,2]
[349932243,1737516633891,-1117.44,0.00021834,2]
[349932244,1737516633902,-528.31760189,0.00021834,2]
[349932245,1737516633911,-864.11,0.00021834,2]
[349932246,1737516633921,-2488.6,0.00021834,2]
[349932247,1737516633931,-2281.05,0.00021834,2]
[349932248,1737516633941,-1688.45,0.00021834,2]
[349932249,1737516633951,-3925.44,0.00021834,2]
[349932250,1737516633960,-2642.97,0.00021834,2]
[349932251,1737516633970,-500.0,0.00021834,2]
[349932252,1737516633981,-1258.72,0.00021834,2]
[349932253,1737516633991,-883.08,0.00021834,2]
[349932254,1737516634001,-1011.61,0.00021834,2]
[349932255,1737516634011,-500.0,0.00021834,2]
[349932256,1737516634021,-4402.61,0.00021834,2]
[349932257,1737516634031,-4333.7,0.00021834,2]
[349932258,1737516634040,-606.46,0.00021834,2]
[349932259,1737516634049,-1302.09,0.00021834,2]
[349932260,1737516634059,-500.0,0.00021834,2]
[349932261,1737516634069,-518.94,0.00021834,2]
[349932262,1737516634080,-1154.69,0.00021834,2]
[349932263,1737516634283,-808.15,0.00021834,2]
[349932264,1737516634293,-500.0,0.00021834,2]
[349932265,1737516634303,-500.0,0.00021834,2]
[349932266,1737516634313,-2907.59,0.00021834,2]
[349932267,1737516634324,-182.30146219,0.00021834,2]
[349932268,1737516634335,-500.0,0.00021834,2]
[349932269,1737516634345,-500.0,0.00021834,2]
[349932270,1737516634355,-500.0,0.00021835,2]
[349932271,1737516634364,-626.76,0.00021835,2]
[349932272,1737516634373,-500.0,0.00021835,2]
[349932273,1737516634383,-500.0,0.00021835,2]
[349932274,1737516634393,-646.81,0.00021835,2]
[349932275,1737516634402,-500.0,0.00021835,2]
[349932276,1737516634412,-500.0,0.00021835,2]
[349932277,1737516634421,-914.8,0.00021835,2]
[349932278,1737516634430,-1002.94,0.00021835,2]
[349932279,1737516634441,-500.0,0.00021835,2]
[349932280,1737516634451,-686.95,0.00021835,2]
[349932281,1737516634460,-508.97,0.00021835,2]
[349932282,1737516634470,-500.0,0.00021835,2]
[349932283,1737516634479,-500.0,0.00021835,2]
[349932284,1737516634489,-1149.38,0.00021835,2]
[349932285,1737516634499,-1013.78,0.00021835,2]
[349932286,1737516634510,-1085.28,0.00021835,2]
[349932287,1737516634519,-500.0,0.00021835,2]
[349932288,1737516634529,-500.0,0.00021835,2]
[349932289,1737516634539,-500.0,0.00021835,2]
[349932290,1737516634549,-500.0,0.00021835,2]
[349932291,1737516634559,-500.0,0.00021835,2]
[349932292,1737516634569,-500.0,0.00021835,2]
[349932293,1737516634578,-579.82,0.00021835,2]
[349932294,1737516634587,-500.0,0.00021835,2]
[349932295,1737516634598,-500.0,0.00021835,2]
[349932296,1737516634607,-500.0,0.00021835,2]
[349932297,1737516634617,-582.04,0.00021835,2]
[349932298,1737516634626,-565.0,0.00021835,2]
[349932299,1737516634636,-500.0,0.00021835,2]
[349932300,1737516634646,-500.0,0.00021835,2]
[349932301,1737516634655,-1203.12,0.00021835,2]
[349932302,1737516634665,-500.0,0.00021835,2]
[349932303,1737516634675,-500.0,0.00021835,2]
[349932304,1737516634684,-500.0,0.00021835,2]
[349932305,1737516634694,-741.62,0.00021835,2]
[349932306,1737516634704,-500.0,0.00021835,2]
[349932307,1737516634714,-177.784996,0.00021835,2]
[349932308,1737516634723,-1196.19,0.00021835,2]
[349932309,1737516634733,-500.0,0.00021835,2]
[349932310,1737516634743,-1460.02,0.00021835,2]
[349932311,1737516634752,-500.0,0.00021835,2]
[349932312,1737516634762,-530.85,0.00021835,2]
[349932313,1737516634772,-500.0,0.00021835,2]
[349932314,1737516634781,-772.63,0.00021835,2]
[349932315,1737516634792,-500.0,0.00021835,2]
[349932316,1737516634804,-500.0,0.00021835,2]
[349932317,1737516634813,-500.0,0.00021835,2]
[349932318,1737516634822,-500.0,0.00021835,2]
[349932319,1737516634832,-500.0,0.00021835,2]
[349932320,1737516634843,-500.0,0.00021835,2]
[349932321,1737516634852,-1559.94,0.00021835,2]
[349932322,1737516634861,-940.97,0.00021835,2]
[349932323,1737516634873,-500.0,0.00021835,2]
[349932324,1737516634882,-500.0,0.00021835,2]
[349932325,1737516634893,-779.77,0.00021835,2]
[349932326,1737516634904,-500.0,0.00021835,2]
[349932327,1737516634913,-500.0,0.00021835,2]
[349932328,1737516634923,-884.61,0.00021835,2]
[349932329,1737516634933,-1109.73,0.00021835,2]
[349932330,1737516634943,-500.0,0.00021835,2]
[349932331,1737516634953,-565.4,0.00021835,2]
[349932332,1737516634962,-504.30497277,0.00021835,2]
[349932333,1737516634972,-676.16,0.00021835,2]
[349932334,1737516634982,-778.88,0.00021835,2]
[349932335,1737516634992,-500.0,0.00021835,2]
[349932336,1737516635002,-577.76,0.00021835,2]
[349932337,1737516635011,-500.0,0.00021835,2]
[349932338,1737516635021,-1040.2,0.00021835,2]
[349932339,1737516635031,-526.6,0.00021835,2]
[349932340,1737516635040,-500.0,0.00021835,2]
[349932341,1737516635050,-500.0,0.00021835,2]
[349932342,1737516635060,-500.0,0.00021835,2]
[349932343,1737516635069,-500.0,0.00021835,2]
[349932344,1737516635079,-908.35,0.00021835,2]
[349932345,1737516635088,-1195.61,0.00021835,2]
[349932346,1737516635098,-500.0,0.00021835,2]
[349932347,1737516635108,-582.9,0.00021835,2]
[349932348,1737516635118,-208.78140868,0.00021835,2]
[349932349,1737516635127,-500.0,0.00021835,2]
[349932350,1737516635137,-1097.9,0.00021835,2]
[349932351,1737516635147,-2527.25,0.00021835,2]
[349932352,1737516635162,-750.47,0.00021835,2]
[349932353,1737516635178,-2920.79,0.00021835,2]
[349932354,1737516635189,-500.0,0.00021835,2]
[349932355,1737516635200,-500.0,0.00021835,2]
[349932356,1737516635210,-865.69,0.00021835,2]
[349932357,1737516635220,-6267.04,0.00021835,2]
[349932358,1737516635231,-410.94283298,0.00021835,2]
[349932359,1737516635243,-500.0,0.00021835,2]
[349932360,1737516635255,-9559.26,0.00021835,2]
[349932361,1737516635265,-500.0,0.00021835,2]
[349932362,1737516635275,-531.07271663,0.00021835,2]
[349932363,1737516635286,-500.0,0.00021835,2]
[349932364,1737516635296,-1225.85,0.00021835,2]
[349932365,1737516635307,-4707.71,0.00021835,2]
[349932366,1737516635316,-629.0,0.00021835,2]
[349932367,1737516635326,-719.66,0.00021835,2]
[349932368,1737516635335,-547.45,0.00021835,2]
[349932369,1737516635344,-2064.58,0.00021835,2]
[349932370,1737516635354,-500.0,0.00021835,2]
[349932371,1737516635363,-589.76,0.00021835,2]
[349932372,1737516635373,-3420.75,0.00021835,2]
[349932373,1737516635383,-2024.7,0.00021835,2]
[349932374,1737516635393,-2643.48,0.00021835,2]
[349932375,1737516635404,-500.0,0.00021835,2]
[349932376,1737516635414,-1399.97,0.00021835,2]
[349932377,1737516635424,-500.0,0.00021835,2]
[349932378,1737516635434,-802.2,0.00021835,2]
[349932379,1737516635444,-2363.26,0.00021835,2]
[349932380,1737516635453,-500.0,0.00021835,2]
[349932381,1737516635462,-1218.81,0.00021835,2]
[349932382,1737516635472,-500.0,0.00021835,2]
[349932383,1737516635482,-500.0,0.00021835,2]
[349932384,1737516635492,-1108.47,0.00021835,2]
[349932385,1737516635501,-1182.08,0.00021835,2]
[349932386,1737516635512,-500.0,0.00021835,2]
[349932387,1737516635522,-3051.77,0.00021835,2]
[349932388,1737516635532,-500.0,0.00021835,2]
[349932389,1737516635541,-505.27486879,0.00021835,2]
[349932390,1737516635550,-1186.94,0.00021835,2]
[349932391,1737516635560,-2239.55,0.00021835,2]
[349932392,1737516635570,-500.0,0.00021835,2]
[349932393,1737516635579,-500.0,0.00021835,2]
[349932394,1737516635589,-500.0,0.00021835,2]
[349932395,1737516635598,-1000.0,0.00021835,2]
[349932396,1737516635607,-500.0,0.00021835,2]
[349932397,1737516635617,-500.0,0.00021835,2]
[349932398,1737516635627,-500.0,0.00021835,2]
[349932399,1737516635637,-500.0,0.00021835,2]
[349932400,1737516635646,-504.16724733,0.00021835,2]
[349932401,1737516635657,-500.0,0.00021835,2]
[349932402,1737516635666,-708.62,0.00021835,2]
[349932403,1737516635676,-500.0,0.00021835,2]
[349932404,1737516635686,-500.0,0.00021835,2]
[349932405,1737516635695,-500.0,0.00021835,2]
[349932406,1737516635705,-500.0,0.00021835,2]
[349932407,1737516635715,-505.52769543,0.00021835,2]
[349932408,1737516635725,-500.0,0.00021835,2]
[349932409,1737516635735,-1686.87,0.00021835,2]
[349932410,1737516635745,-504.75455408,0.00021835,2]
[349932411,1737516635757,-1837.63,0.00021835,2]
[349932412,1737516635767,-500.0,0.00021835,2]
[349932413,1737516635777,-500.0,0.00021835,2]
[349932414,1737516635787,-1996.1,0.00021835,2]
[349932415,1737516635798,-254.48314595,0.00021835,2]
[349932416,1737516635810,-500.0,0.00021835,2]
[349932417,1737516635820,-500.0,0.00021835,2]
[349932418,1737516635831,-985.1,0.00021835,2]
[349932419,1737516635841,-500.0,0.00021835,2]
[349932420,1737516635851,-500.0,0.00021835,2]
[349932421,1737516635862,-500.0,0.00021836,2]
[349932422,1737516635873,-500.0,0.00021836,2]
[349932423,1737516635883,-500.0,0.00021836,2]
[349932424,1737516635893,-504.75174219,0.00021836,2]
[349932425,1737516635903,-500.0,0.00021836,2]
[349932426,1737516635916,-500.0,0.00021836,2]
[349932427,1737516635926,-150.0,0.00021836,2]
[349932428,1737516635936,-500.0,0.00021836,2]
[349932429,1737516635946,-503.28498995,0.00021836,2]
[349932430,1737516635956,-5000.0,0.00021836,2]
[349932431,1737516635966,-500.0,0.00021836,2]
[349932432,1737516635976,-500.0,0.00021836,2]
[349932433,1737516635987,-500.0,0.00021836,2]
[349932434,1737516635996,-500.0,0.00021836,2]
[349932435,1737516636008,-500.0,0.00021836,2]
[349932436,1737516636017,-167.85622545,0.00021836,2]
[349932437,1737516636027,-500.0,0.00021836,2]
[349932438,1737516636037,-500.0,0.00021836,2]
[349932439,1737516636047,-500.0,0.00021836,2]
[349932440,1737516636056,-657.36,0.00021836,2]
[349932441,1737516636065,-500.0,0.00021836,2]
[349932442,1737516636076,-500.0,0.00021836,2]
[349932443,1737516636086,-821.77,0.00021836,2]
[349932444,1737516636097,-500.0,0.00021836,2]
[349932445,1737516636107,-500.0,0.00021836,2]
[349932446,1737516636116,-500.0,0.00021836,2]
[349932447,1737516636125,-500.0,0.00021836,2]
[349932448,1737516636135,-500.0,0.00021836,2]
[349932449,1737516636145,-500.0,0.00021836,2]
[349932450,1737516636155,-1226.21,0.00021836,2]
[349932451,1737516636165,-710.43,0.00021836,2]
[349932452,1737516636175,-838.97,0.00021836,2]
[349932453,1737516636184,-500.0,0.00021836,2]
[349932454,1737516636194,-500.0,0.00021836,2]
[349932455,1737516636204,-658.67,0.00021836,2]
[349932456,1737516636213,-500.0,0.00021836,2]
[349932457,1737516636223,-500.0,0.00021836,2]
[349932458,1737516636233,-500.0,0.00021836,2]
[349932459,1737516636242,-553.96739049,0.00021837,2]
[349932460,1737516636252,-87279.43264765,0.0002185,2]
[349932461,1737516636263,-172.43,0.00021862,2]
[349932462,1737516636273,-553.96739049,0.00021868,2]
[349932463,1737516636283,-501.43538456,0.00021873,2]
[349932464,1737516636292,-503.60068251,0.00021873,2]
[349932465,1737516636302,-151.70071143,0.00021873,2]
[349932466,1737516636312,-500.0,0.00021873,2]
[349932467,1737516636321,-501.76354427,0.0002188,2]
[349932468,1737516636331,-682.78768997,0.000219,2]
[349932469,1737516636341,-185.0071,0.000219,2]
[349932470,1737516636351,-2447.82197481,0.000219,2]
[349932471,1737516636361,-553.96739049,0.000219,2]
[349932472,1737516636370,-166.80627001,0.000219,2]
[349932473,1737516636380,-206.0081426,0.000219,2]
[349932474,1737516636390,-549.13204007,0.000219,2]
[349932475,1737516636400,-4000.0,0.00021918,2]
[349932476,1737516636410,-150.0,0.00021918,2]
[349932477,1737516636419,-150.0,0.00021973,4]
[349932478,1737516636428,-293.99903966,0.00021973,4]
[349932479,1737516636439,-150.0,0.00021973,4]
[349932480,1737516636449,-500.0,0.00021973,2]
[349932481,1737516636458,-500.0,0.00021973,2]
[349932482,1737516636467,-461.8043999,0.00021985,2]
[349932483,1737516636477,-461.8043999,0.00021985,2]
[349932484,1737516636487,-461.8043999,0.00021985,2]
[349932485,1737516636496,-461.8043999,0.00021985,2]
[349932486,1737516636506,-461.8043999,0.00021985,2]
[349932487,1737516636517,-472.065659,0.00021985,2]
[349932488,1737516636526,-472.065659,0.00021985,2]
[349932489,1737516636536,-472.065659,0.00021985,2]
[349932490,1737516636547,-472.065659,0.00021985,2]
[349932491,1737516636556,-472.065659,0.00021985,2]
[349932492,1737516636566,-692.886757,0.00021985,2]
[349932493,1737516636575,-857.5554491,0.00021985,2]
[349932494,1737516636584,-1022.2241412,0.00021985,2]
[349932495,1737516636594,-1186.8928333,0.00021985,2]
[349932496,1737516636604,-1351.5615254,0.00021985,2]
[349932497,1737516636614,-500.0,0.00021988,2]
[349932498,1737516636623,-500.0,0.00021988,2]
[349932499,1737516636632,-503.28046258,0.00021988,2]
[349932500,1737516636642,-500.0,0.00021988,2]
[349932501,1737516636651,-500.0,0.00021988,2]
[349932502,1737516636661,-510.48057475,0.00021988,2]
[349932503,1737516636671,-500.0,0.00021988,2]
[349932504,1737516636680,-500.0,0.00021988,2]
[349932505,1737516636690,-507.63825194,0.00021988,2]
[349932506,1737516636699,-500.0,0.00021988,2]
[349932507,1737516636709,-500.0,0.00021988,2]
[349932508,1737516636719,-495.34184757,0.00021988,2]
[349932509,1737516636729,-500.0,0.00021988,2]
[349932510,1737516636739,-352.61571594,0.00021988,2]
[349932511,1737516636748,-504.96684384,0.00021988,2]
[349932512,1737516636759,-500.0,0.00021988,2]
[349932513,1737516636768,-500.0,0.00021988,2]
[349932514,1737516636777,-500.0,0.00021988,2]
[349932515,1737516636787,-500.0,0.00021988,2]
[349932516,1737516636801,-642.86633712,0.00021988,2]
[349932517,1737516636811,-500.0,0.00021988,2]
[349932518,1737516636820,-502.87436447,0.00021988,2]
[349932519,1737516636829,-246.99701582,0.00021988,2]
[349932520,1737516636841,-500.0,0.00021988,2]
[349932521,1737516636850,-500.0,0.00021988,2]
[349932522,1737516636860,-500.0,0.00021988,2]
[349932523,1737516636869,-500.0,0.00021988,2]
[349932524,1737516636879,-500.0,0.00021988,2]
[349932525,1737516636889,-500.0,0.00021988,2]
[349932526,1737516636899,-579.09,0.00021988,2]
[349932527,1737516636909,-500.0,0.00021988,2]
[349932528,1737516636918,-500.0,0.00021988,2]
[349932529,1737516636928,-500.0,0.00021988,2]
[349932530,1737516636938,-538.75764938,0.00021988,2]
[349932531,1737516636948,-500.0,0.00021988,2]
[349932532,1737516636958,-500.0,0.00021988,2]
[349932533,1737516636967,-507.14567869,0.00021988,2]
[349932534,1737516636977,-561.63597177,0.00021988,2]
[349932535,1737516636987,-500.0,0.00021988,2]
[349932536,1737516636997,-500.0,0.00021988,2]
[349932537,1737516637007,-507.79894795,0.00021988,2]
[349932538,1737516637016,-500.0,0.00021988,2]
[349932539,1737516637026,-500.0,0.00021988,2]
[349932540,1737516637036,-200.0,0.00021988,2]
[349932541,1737516637047,-500.0,0.00021988,2]
[349932542,1737516637057,-500.0,0.00021988,2]
[349932543,1737516637067,-500.0,0.00021988,2]
[349932544,1737516637076,-500.0,0.00021988,2]
[349932545,1737516637086,-500.0,0.00021988,2]
[349932546,1737516637095,-500.0,0.00021988,2]
[349932547,1737516637106,-500.0,0.00021988,2]
[349932548,1737516637116,-500.0,0.00021988,2]
[349932549,1737516637126,-500.0,0.00021988,2]
[349932550,1737516637135,-500.0,0.00021988,2]
[349932551,1737516637145,-500.0,0.00021988,2]
[349932552,1737516637155,-500.0,0.00021988,2]
[349932553,1737516637164,-474.80590998,0.00021988,2]
[349932554,1737516637174,-500.0,0.00021988,2]
[349932555,1737516637184,-500.0,0.00021988,2]
[349932556,1737516637193,-500.0,0.00021988,2]
[349932557,1737516637202,-500.0,0.00021988,2]
[349932558,1737516637212,-689.08,0.00021988,2]
[349932559,1737516637222,-500.0,0.00021988,2]
[349932560,1737516637231,-500.0,0.00021988,2]
[349932561,1737516637241,-330.4,0.00021988,2]
[349932562,1737516637251,-500.0,0.00021988,2]
[349932563,1737516637260,-488.1868277,0.00021988,2]
[349932564,1737516637270,-500.0,0.00021988,2]
[349932565,1737516637280,-551.68821851,0.00021988,2]
[349932567,1737516637289,-500.0,0.00021988,2]
[349932569,1737516637299,-500.0,0.00021988,2]
[349932570,1737516637308,-500.0,0.00021988,2]
[349932571,1737516637318,-595.69523691,0.00021988,2]
[349932572,1737516637474,-500.0,0.00021988,2]
[349932573,1737516637483,-502.79105929,0.00021988,2]
[349932574,1737516637493,-500.0,0.00021988,2]
[349932575,1737516637503,-500.0,0.00021988,2]
[349932576,1737516637512,-500.0,0.00021988,2]
[349932577,1737516637521,-500.0,0.00021988,2]
[349932578,1737516637530,-500.0,0.00021988,2]
[349932579,1737516637542,-500.0,0.00021988,2]
[349932580,1737516637551,-548.2,0.00021988,2]
[349932581,1737516637560,-512.28363801,0.00021988,2]
[349932582,1737516637570,-502.22386043,0.00021988,2]
[349932583,1737516637579,-500.0,0.00021988,2]
[349932584,1737516637589,-500.0,0.00021988,2]
[349932585,1737516637599,-590.55118113,0.00021988,2]
[349932586,1737516637610,-500.0,0.00021988,2]
[349932587,1737516637619,-530.88963568,0.00021988,2]
[349932588,1737516637628,-270.26302088,0.00021988,2]
[349932589,1737516637637,-230.1395867,0.00021988,2]
[349932590,1737516637647,-631.21120888,0.00021988,2]
[349932591,1737516637657,-500.0,0.00021988,2]
[349932592,1737516637666,-500.0,0.00021988,2]
[349932593,1737516637676,-500.0,0.00021988,2]
[349932594,1737516637686,-419.76825757,0.00021988,2]
[349932595,1737516637697,-500.0,0.00021988,2]
[349932596,1737516637707,-529.72568101,0.00021988,2]
[349932597,1737516637717,-500.0,0.00021988,2]
[349932598,1737516637727,-631.96594599,0.00021988,2]
[349932599,1737516637736,-500.0,0.00021988,2]
[349932600,1737516637746,-500.0,0.00021988,2]
[349932601,1737516637755,-500.0,0.00021988,2]
[349932602,1737516637765,-500.0,0.00021988,2]
[349932603,1737516637774,-682.22,0.00021988,2]
[349932604,1737516637783,-500.0,0.00021988,2]
[349932605,1737516637796,-500.0,0.00021988,2]
[349932606,1737516637805,-500.0,0.00021988,2]
[349932607,1737516637814,-631.38703345,0.00021988,2]
[349932608,1737516637823,-515.5538062,0.00021988,2]
[349932609,1737516637834,-500.0,0.00021988,2]
[349932610,1737516637843,-518.0299299,0.00021988,2]
[349932611,1737516637852,-508.298233,0.00021988,2]
[349932612,1737516637861,-500.0,0.00021988,2]
[349932613,1737516637872,-500.0,0.00021988,2]
[349932614,1737516637881,-500.0,0.00021988,2]
[349932615,1737516637891,-508.87725318,0.00021988,2]
[349932616,1737516637900,-523.1342156,0.00021988,2]
[349932617,1737516637909,-515.02948895,0.00021988,2]
[349932618,1737516637919,-500.0,0.00021988,2]
[349932619,1737516637929,-500.0,0.00021988,2]
[349932621,1737516637938,-511.05959747,0.00021988,2]
[349932623,1737516637947,-514.2229201,0.00021988,2]
[349932624,1737516637957,-500.0,0.00021988,2]
[349932626,1737516637967,-476.10028676,0.00021988,2]
[349932627,1737516637976,-519.06186215,0.00021988,2]
[349932628,1737516637986,-541.18567379,0.00021988,2]
[349932630,1737516637995,-500.0,0.00021988,2]
[349932631,1737516638004,-524.6408125,0.00021988,2]
[349932633,1737516638015,-500.0,0.00021988,2]
[349932634,1737516638025,-500.0,0.00021988,2]
[349932635,1737516638034,-500.0,0.00021988,2]
[349932636,1737516638043,-503.34398734,0.00021988,2]
[349932638,1737516638052,-500.0,0.00021988,2]
[349932639,1737516638060,-500.0,0.00021988,2]
[349932640,1737516638069,-500.0,0.00021988,2]
[349932641,1737516638080,-500.0,0.00021988,2]
[349932642,1737516638089,-500.0,0.00021988,2]
[349932643,1737516638098,-500.0,0.00021988,2]
[349932644,1737516638107,-500.0,0.00021988,2]
[349932645,1737516638116,-508.32197365,0.00021988,2]
[349932646,1737516638125,-509.81459141,0.00021988,2]
[349932647,1737516638135,-500.0,0.00021988,2]
[349932648,1737516638145,-855.24,0.00021988,2]
[349932649,1737516638154,-520.75256291,0.00021988,2]
[349932650,1737516638163,-500.0,0.00021988,2]
[349932651,1737516638179,-256.36022504,0.00021988,2]
[349932652,1737516638189,-500.0,0.00021988,2]
[349932653,1737516638198,-500.0,0.00021988,2]
[349932654,1737516638207,-500.0,0.00021988,2]
[349932655,1737516638217,-533.3609318,0.00021988,2]
[349932656,1737516638226,-500.0,0.00021988,2]
[349932657,1737516638236,-500.0,0.00021988,2]
[349932658,1737516638245,-500.0,0.00021988,2]
[349932659,1737516638255,-298.11121884,0.00021988,2]
[349932660,1737516638267,-500.0,0.00021988,2]
[349932661,1737516638276,-500.0,0.00021988,2]
[349932662,1737516638286,-538.55723897,0.00021988,2]
[349932663,1737516638295,-500.0,0.00021988,2]
[349932664,1737516638304,-500.0,0.00021988,2]
[349932665,1737516638314,-500.0,0.00021988,2]
[349932666,1737516638324,-500.0,0.00021988,2]
[349932667,1737516638333,-500.0,0.00021988,2]
[349932668,1737516638343,-500.0,0.00021988,2]
[349932669,1737516638353,-500.0,0.00021988,2]
[349932670,1737516638362,-500.0,0.00021988,2]
[349932671,1737516638371,-500.0,0.00021988,2]
[349932672,1737516638380,-500.0,0.00021988,2]
[349932673,1737516638389,-500.0,0.00021988,2]
[349932674,1737516638398,-512.12445377,0.00021988,2]
[349932675,1737516638406,-542.25679361,0.00021988,2]
[349932676,1737516638415,-500.0,0.00021988,2]
[349932677,1737516638424,-500.0,0.00021988,2]
[349932678,1737516638433,-500.0,0.00021988,2]
[349932679,1737516638442,-500.0,0.00021988,2]
[349932680,1737516638451,-500.0,0.00021988,2]
[349932681,1737516638459,-500.0,0.00021988,2]
[349932682,1737516638468,-500.0,0.00021988,2]
[349932683,1737516638477,-500.0,0.00021988,2]
[349932684,1737516638486,-190.05170647,0.00021988,2]
[349932685,1737516638495,-500.0,0.00021988,2]
[349932686,1737516638504,-500.0,0.00021988,2]
[349932687,1737516638515,-500.0,0.00021988,2]
[349932688,1737516638524,-500.0,0.00021988,2]
[349932689,1737516638533,-500.0,0.00021988,2]
[349932690,1737516638542,-500.0,0.00021988,2]
[349932691,1737516638551,-500.0,0.00021988,2]
[349932692,1737516638560,-500.0,0.00021988,2]
[349932693,1737516638569,-500.0,0.00021988,2]
[349932694,1737516638578,-554.67,0.00021988,2]
[349932695,1737516638591,-500.0,0.00021988,2]
[349932696,1737516638601,-586.62610689,0.00021988,2]
[349932697,1737516638610,-500.0,0.00021988,2]
[349932698,1737516638619,-510.08049066,0.00021988,2]
[349932699,1737516638629,-500.0,0.00021988,2]
[349932700,1737516638638,-500.0,0.00021988,2]
[349932701,1737516638647,-500.0,0.00021988,2]
[349932702,1737516638656,-500.0,0.00021988,2]
[349932703,1737516638665,-500.0,0.00021988,2]
[349932704,1737516638674,-500.0,0.00021988,2]
[349932705,1737516638684,-500.0,0.00021988,2]
[349932706,1737516638693,-729.57,0.00021988,2]
[349932707,1737516638703,-500.0,0.00021988,2]
[349932708,1737516638712,-502.60233777,0.00021988,2]
[349932709,1737516638721,-500.0,0.00021988,2]
[349932710,1737516638731,-500.0,0.00021988,2]
[349932711,1737516638740,-500.0,0.00021988,2]
[349932712,1737516638749,-500.0,0.00021988,2]
[349932713,1737516638763,-500.0,0.00021988,2]
[349932714,1737516638774,-500.0,0.00021988,2]
[349932715,1737516638783,-500.0,0.00021988,2]
[349932716,1737516638796,-500.0,0.00021988,2]
[349932717,1737516638805,-500.0,0.00021988,2]
[349932718,1737516638814,-500.0,0.00021988,2]
[349932719,1737516638828,-427.17709227,0.00021988,2]
[349932720,1737516638845,-500.0,0.00021988,2]
[349932721,1737516638859,-500.0,0.00021988,2]
[349932722,1737516638871,-500.0,0.00021988,2]
[349932723,1737516638885,-500.0,0.00021988,2]
[349932724,1737516638899,-500.0,0.00021988,2]